[Event "Titled Tuesday Blitz January 18 2022"]
[White "Al Mukhaini, Shima"]
[Black "Guz, Ari"]
[WhiteFideId "22005854"]
[BlackFideId "2825759"]
[WhiteElo "2356"]
[BlackElo "1913"]
[Result "1/2-1/2"]
[Round "02"]
[TimeControl "180+1"]
[Date "2022.01.18"]
[WhiteClock "0:00:23"]
[BlackClock "0:01:44"]

1. e4 {[%clk 0:02:57]}  e5 {[%clk 0:03:00]} 2. Nf3 {[%clk 0:02:57]}  Nc6 {[%clk 0:03:00]} 3. Bb5 {[%clk 0:02:57]}  g6 {[%clk 0:03:00]} 4. O-O {[%clk 0:02:55]}  Bg7 {[%clk 0:03:00]} 5. c3 {[%clk 0:02:55]}  Nge7 {[%clk 0:02:59]} 6. d4 {[%clk 0:02:54]}  O-O {[%clk 0:02:59]} 7. dxe5 {[%clk 0:02:50]}  Nxe5 {[%clk 0:02:59]} 8. Nxe5 {[%clk 0:02:50]}  Bxe5 {[%clk 0:03:00]} 9. Bh6 {[%clk 0:02:48]}  Bg7 {[%clk 0:02:59]} 10. Bxg7 {[%clk 0:02:48]}  Kxg7 {[%clk 0:03:00]} 11. Na3 {[%clk 0:02:41]}  d6 {[%clk 0:02:58]} 12. Qd4+ {[%clk 0:02:37]}  Kg8 {[%clk 0:02:58]} 13. Rad1 {[%clk 0:02:36]}  Nc6 {[%clk 0:02:58]} 14. Bxc6 {[%clk 0:02:32]}  bxc6 {[%clk 0:02:59]} 15. e5 {[%clk 0:02:32]}  d5 {[%clk 0:02:55]} 16. Nc2 {[%clk 0:02:19]}  Be6 {[%clk 0:02:51]} 17. Ne3 {[%clk 0:02:16]}  Qb8 {[%clk 0:02:52]} 18. f4 {[%clk 0:02:02]}  Qxb2 {[%clk 0:02:41]} 19. f5 {[%clk 0:01:59]}  gxf5 {[%clk 0:02:41]} 20. Nxf5 {[%clk 0:01:59]}  Bxf5 {[%clk 0:02:42]} 21. Rxf5 {[%clk 0:01:58]}  Qb6 {[%clk 0:02:42]} 22. Kf1 {[%clk 0:01:34]}  Qxd4 {[%clk 0:02:40]} 23. cxd4 {[%clk 0:01:35]}  Rab8 {[%clk 0:02:38]} 24. Rf6 {[%clk 0:01:28]}  Rb6 {[%clk 0:02:38]} 25. Rc1 {[%clk 0:01:22]}  Rb4 {[%clk 0:02:24]} 26. Rcxc6 {[%clk 0:01:08]}  Rxd4 {[%clk 0:02:23]} 27. Rxc7 {[%clk 0:01:08]}  a5 {[%clk 0:02:20]} 28. Rd6 {[%clk 0:00:53]}  Rd2 {[%clk 0:02:16]} 29. Rc5 {[%clk 0:00:48]}  Rxa2 {[%clk 0:02:15]} 30. Rcxd5 {[%clk 0:00:43]}  a4 {[%clk 0:02:13]} 31. Rd8 {[%clk 0:00:43]}  Rxd8 {[%clk 0:02:13]} 32. Rxd8+ {[%clk 0:00:44]}  Kg7 {[%clk 0:02:14]} 33. Ra8 {[%clk 0:00:41]}  a3 {[%clk 0:02:14]} 34. Ra6 {[%clk 0:00:39]}  Kf8 {[%clk 0:02:13]} 35. Ra7 {[%clk 0:00:37]}  h5 {[%clk 0:02:10]} 36. h4 {[%clk 0:00:36]}  Ke8 {[%clk 0:02:07]} 37. Kg1 {[%clk 0:00:31]}  Kf8 {[%clk 0:01:54]} 38. Kh2 {[%clk 0:00:29]}  Kg7 {[%clk 0:01:54]} 39. e6 {[%clk 0:00:27]}  Kf8 {[%clk 0:01:51]} 40. exf7 {[%clk 0:00:27]}  Ra1 {[%clk 0:01:47]} 41. Kg3 {[%clk 0:00:26]}  a2 {[%clk 0:01:47]} 42. Kh2 {[%clk 0:00:23]}  Kg7 {[%clk 0:01:44]} 1/2-1/2


[Site "https://www.chess.com"]

[Event "Titled Tuesday Blitz January 18 2022"]
[White "Al-Tarboush, Ward"]
[Black "Timofeev, Artyom"]
[WhiteFideId "7601450"]
[BlackFideId "4140419"]
[WhiteElo "2276"]
[BlackElo "2583"]
[Result "0-1"]
[Round "02"]
[TimeControl "180+1"]
[Date "2022.01.18"]
[WhiteClock "0:00:01"]
[BlackClock "0:00:06"]

1. d4 {[%clk 0:03:00]}  d5 {[%clk 0:02:59]} 2. Nf3 {[%clk 0:03:01]}  Nf6 {[%clk 0:02:58]} 3. Nc3 {[%clk 0:03:01]}  g6 {[%clk 0:02:57]} 4. Bg5 {[%clk 0:03:01]}  Nbd7 {[%clk 0:02:56]} 5. e3 {[%clk 0:03:01]}  Bg7 {[%clk 0:02:56]} 6. Bd3 {[%clk 0:03:01]}  a6 {[%clk 0:02:55]} 7. O-O {[%clk 0:03:02]}  O-O {[%clk 0:02:55]} 8. e4 {[%clk 0:02:59]}  dxe4 {[%clk 0:02:53]} 9. Nxe4 {[%clk 0:03:00]}  b5 {[%clk 0:02:49]} 10. Qe2 {[%clk 0:02:58]}  Bb7 {[%clk 0:02:48]} 11. Rfe1 {[%clk 0:02:57]}  h6 {[%clk 0:02:48]} 12. Bh4 {[%clk 0:02:57]}  Re8 {[%clk 0:02:42]} 13. Rad1 {[%clk 0:02:56]}  Nd5 {[%clk 0:02:39]} 14. Bg3 {[%clk 0:02:48]}  Nb4 {[%clk 0:02:37]} 15. Ne5 {[%clk 0:02:47]}  Nxd3 {[%clk 0:02:36]} 16. Rxd3 {[%clk 0:02:45]}  Nxe5 {[%clk 0:02:31]} 17. dxe5 {[%clk 0:02:45]}  Qc8 {[%clk 0:02:31]} 18. Nc5 {[%clk 0:02:45]}  e6 {[%clk 0:02:26]} 19. Ne4 {[%clk 0:02:32]}  Bxe4 {[%clk 0:02:19]} 20. Qxe4 {[%clk 0:02:32]}  c5 {[%clk 0:02:17]} 21. Red1 {[%clk 0:02:31]}  Ra7 {[%clk 0:02:13]} 22. Rd6 {[%clk 0:02:30]}  c4 {[%clk 0:02:10]} 23. h4 {[%clk 0:02:24]}  Bf8 {[%clk 0:01:59]} 24. R6d2 {[%clk 0:01:49]}  h5 {[%clk 0:01:51]} 25. Bf4 {[%clk 0:01:47]}  Be7 {[%clk 0:01:49]} 26. Bg5 {[%clk 0:01:47]}  Bxg5 {[%clk 0:01:35]} 27. hxg5 {[%clk 0:01:48]}  c3 {[%clk 0:01:36]} 28. bxc3 {[%clk 0:01:48]}  Qxc3 {[%clk 0:01:36]} 29. Rd8 {[%clk 0:01:48]}  Re7 {[%clk 0:01:17]} 30. Qa8 {[%clk 0:01:36]}  Kf8 {[%clk 0:01:15]} 31. Qxa6 {[%clk 0:01:27]}  Qxe5 {[%clk 0:01:12]} 32. Qa3 {[%clk 0:00:49]}  Kg7 {[%clk 0:01:04]} 33. R8d3 {[%clk 0:00:28]}  Qxg5 {[%clk 0:00:59]} 34. Rf3 {[%clk 0:00:28]}  Qe5 {[%clk 0:00:56]} 35. Re3 {[%clk 0:00:27]}  Qg5 {[%clk 0:00:52]} 36. Rf3 {[%clk 0:00:25]}  Kh7 {[%clk 0:00:50]} 37. Qb2 {[%clk 0:00:24]}  Rc7 {[%clk 0:00:44]} 38. Rb1 {[%clk 0:00:20]}  Rd8 {[%clk 0:00:39]} 39. g3 {[%clk 0:00:18]}  Kg8 {[%clk 0:00:31]} 40. Qxb5 {[%clk 0:00:13]}  Qxb5 {[%clk 0:00:31]} 41. Rxb5 {[%clk 0:00:13]}  Rxc2 {[%clk 0:00:30]} 42. Rb7 {[%clk 0:00:13]}  Rf8 {[%clk 0:00:30]} 43. a4 {[%clk 0:00:13]}  Ra2 {[%clk 0:00:31]} 44. Ra7 {[%clk 0:00:13]}  Kg7 {[%clk 0:00:29]} 45. a5 {[%clk 0:00:13]}  g5 {[%clk 0:00:29]} 46. Re3 {[%clk 0:00:12]}  Kg6 {[%clk 0:00:29]} 47. Rf3 {[%clk 0:00:11]}  f6 {[%clk 0:00:27]} 48. Re3 {[%clk 0:00:08]}  e5 {[%clk 0:00:27]} 49. Rd3 {[%clk 0:00:08]}  Rc8 {[%clk 0:00:23]} 50. Ra6 {[%clk 0:00:05]}  g4 {[%clk 0:00:21]} 51. Rdd6 {[%clk 0:00:05]}  Rf8 {[%clk 0:00:21]} 52. Re6 {[%clk 0:00:05]}  Kf5 {[%clk 0:00:20]} 53. Re7 {[%clk 0:00:06]}  h4 {[%clk 0:00:17]} 54. gxh4 {[%clk 0:00:05]}  Kf4 {[%clk 0:00:17]} 55. Rc7 {[%clk 0:00:03]}  e4 {[%clk 0:00:16]} 56. Rc3 {[%clk 0:00:03]}  f5 {[%clk 0:00:16]} 57. h5 {[%clk 0:00:03]}  Rh8 {[%clk 0:00:15]} 58. h6 {[%clk 0:00:03]}  Kg5 {[%clk 0:00:16]} 59. Rcc6 {[%clk 0:00:03]}  f4 {[%clk 0:00:15]} 60. Rc5+ {[%clk 0:00:03]}  Kh4 {[%clk 0:00:15]} 61. Rf6 {[%clk 0:00:03]}  f3 {[%clk 0:00:12]} 62. a6 {[%clk 0:00:03]}  e3 {[%clk 0:00:08]} 63. fxe3 {[%clk 0:00:02]}  Ra1+ {[%clk 0:00:08]} 64. Kf2 {[%clk 0:00:01]}  Rd8 {[%clk 0:00:07]} 65. Rc2 {[%clk 0:00:01]}  Rad1 {[%clk 0:00:06]} 0-1


[Site "https://www.chess.com"]

[Event "Titled Tuesday Blitz January 18 2022"]
[White "Belyakov, Bogdan"]
[Black "Nakamura, Hikaru"]
[WhiteFideId "24104795"]
[BlackFideId "2016192"]
[WhiteElo "2647"]
[BlackElo "3221"]
[Result "0-1"]
[Round "02"]
[TimeControl "180+1"]
[Date "2022.01.18"]
[WhiteClock "0:00:23"]
[BlackClock "0:01:40"]

1. e4 {[%clk 0:03:00]}  g6 {[%clk 0:02:55]} 2. d4 {[%clk 0:03:00]}  Bg7 {[%clk 0:02:55]} 3. Nf3 {[%clk 0:02:59]}  d6 {[%clk 0:02:50]} 4. Nc3 {[%clk 0:02:58]}  a6 {[%clk 0:02:51]} 5. Be2 {[%clk 0:02:57]}  b5 {[%clk 0:02:51]} 6. O-O {[%clk 0:02:57]}  Bb7 {[%clk 0:02:51]} 7. Re1 {[%clk 0:02:56]}  Nd7 {[%clk 0:02:51]} 8. Bf1 {[%clk 0:02:50]}  e6 {[%clk 0:02:51]} 9. a3 {[%clk 0:02:38]}  Ne7 {[%clk 0:02:49]} 10. Bf4 {[%clk 0:02:31]}  h6 {[%clk 0:02:48]} 11. h3 {[%clk 0:02:28]}  O-O {[%clk 0:02:48]} 12. Qd2 {[%clk 0:02:28]}  g5 {[%clk 0:02:48]} 13. Be3 {[%clk 0:02:22]}  f5 {[%clk 0:02:48]} 14. Bxg5 {[%clk 0:02:10]}  hxg5 {[%clk 0:02:44]} 15. Nxg5 {[%clk 0:02:11]}  Bh6 {[%clk 0:02:43]} 16. f4 {[%clk 0:02:08]}  Bxg5 {[%clk 0:02:40]} 17. fxg5 {[%clk 0:02:09]}  f4 {[%clk 0:02:39]} 18. Qe2 {[%clk 0:01:50]}  e5 {[%clk 0:02:35]} 19. Qg4 {[%clk 0:01:23]}  Kg7 {[%clk 0:02:23]} 20. Rad1 {[%clk 0:01:03]}  exd4 {[%clk 0:02:08]} 21. Nd5 {[%clk 0:01:03]}  Nxd5 {[%clk 0:02:02]} 22. exd5 {[%clk 0:01:00]}  Ne5 {[%clk 0:02:02]} 23. Rxe5 {[%clk 0:00:49]}  dxe5 {[%clk 0:02:02]} 24. Bd3 {[%clk 0:00:50]}  Qxd5 {[%clk 0:02:00]} 25. Re1 {[%clk 0:00:45]}  f3 {[%clk 0:01:54]} 26. Re4 {[%clk 0:00:39]}  f2+ {[%clk 0:01:42]} 27. Kf1 {[%clk 0:00:36]}  Qa2 {[%clk 0:01:41]} 28. Qd1 {[%clk 0:00:24]}  Bxe4 {[%clk 0:01:40]} 29. Bxe4 {[%clk 0:00:25]}  Qc4+ {[%clk 0:01:40]} 30. Bd3 {[%clk 0:00:25]}  Qf7 {[%clk 0:01:40]} 31. Qg4 {[%clk 0:00:23]}  Qf4 {[%clk 0:01:40]} 0-1


[Site "https://www.chess.com"]

[Event "Titled Tuesday Blitz January 18 2022"]
[White "Bluebaum, Matthias"]
[Black "Agasarov, Benik"]
[WhiteFideId "24651516"]
[BlackFideId "13314823"]
[WhiteElo "2550"]
[BlackElo "2589"]
[Result "1-0"]
[Round "02"]
[TimeControl "180+1"]
[Date "2022.01.18"]
[WhiteClock "0:00:18"]
[BlackClock "0:00:20"]

1. d4 {[%clk 0:03:00]}  Nf6 {[%clk 0:02:59]} 2. Nf3 {[%clk 0:03:01]}  e6 {[%clk 0:02:58]} 3. c4 {[%clk 0:03:01]}  b6 {[%clk 0:02:50]} 4. g3 {[%clk 0:03:01]}  Ba6 {[%clk 0:02:50]} 5. b3 {[%clk 0:03:00]}  Bb7 {[%clk 0:02:48]} 6. Bg2 {[%clk 0:03:00]}  Bb4+ {[%clk 0:02:49]} 7. Bd2 {[%clk 0:03:00]}  c5 {[%clk 0:02:49]} 8. d5 {[%clk 0:02:50]}  Bxd2+ {[%clk 0:02:40]} 9. Qxd2 {[%clk 0:02:49]}  exd5 {[%clk 0:02:38]} 10. Nh4 {[%clk 0:02:49]}  Ne4 {[%clk 0:02:21]} 11. Qb2 {[%clk 0:02:25]}  d4 {[%clk 0:02:09]} 12. Qc2 {[%clk 0:02:11]}  d5 {[%clk 0:02:02]} 13. cxd5 {[%clk 0:02:08]}  Nf6 {[%clk 0:02:01]} 14. e4 {[%clk 0:02:01]}  dxe3 {[%clk 0:01:56]} 15. fxe3 {[%clk 0:02:01]}  Bxd5 {[%clk 0:01:53]} 16. Nc3 {[%clk 0:02:01]}  Bxg2 {[%clk 0:01:50]} 17. Qxg2 {[%clk 0:02:01]}  Nbd7 {[%clk 0:01:50]} 18. O-O {[%clk 0:01:59]}  O-O {[%clk 0:01:50]} 19. Rad1 {[%clk 0:01:59]}  Qc7 {[%clk 0:01:48]} 20. Nf5 {[%clk 0:01:57]}  Qe5 {[%clk 0:01:46]} 21. Nd5 {[%clk 0:01:51]}  Rad8 {[%clk 0:01:39]} 22. Nde7+ {[%clk 0:01:45]}  Kh8 {[%clk 0:01:39]} 23. Nc6 {[%clk 0:01:46]}  Qc7 {[%clk 0:01:28]} 24. Nxd8 {[%clk 0:01:45]}  Rxd8 {[%clk 0:01:29]} 25. Rd2 {[%clk 0:01:41]}  Qe5 {[%clk 0:01:23]} 26. Qf3 {[%clk 0:01:25]}  Ne4 {[%clk 0:01:15]} 27. Rd3 {[%clk 0:01:12]}  Ng5 {[%clk 0:00:56]} 28. Qg4 {[%clk 0:01:11]}  Ne6 {[%clk 0:00:55]} 29. Rfd1 {[%clk 0:01:11]}  g6 {[%clk 0:00:48]} 30. Rxd7 {[%clk 0:01:07]}  Rxd7 {[%clk 0:00:47]} 31. Rxd7 {[%clk 0:01:08]}  gxf5 {[%clk 0:00:47]} 32. Qe2 {[%clk 0:01:01]}  Kg7 {[%clk 0:00:46]} 33. Rd1 {[%clk 0:00:57]}  f4 {[%clk 0:00:42]} 34. gxf4 {[%clk 0:00:32]}  Nxf4 {[%clk 0:00:42]} 35. Qf3 {[%clk 0:00:33]}  Ng6 {[%clk 0:00:37]} 36. Rf1 {[%clk 0:00:33]}  f6 {[%clk 0:00:36]} 37. Kh1 {[%clk 0:00:32]}  Qe7 {[%clk 0:00:31]} 38. Rf2 {[%clk 0:00:27]}  Qd7 {[%clk 0:00:30]} 39. Qxf6+ {[%clk 0:00:24]}  Kg8 {[%clk 0:00:30]} 40. Qf3 {[%clk 0:00:22]}  Qe7 {[%clk 0:00:24]} 41. e4 {[%clk 0:00:17]}  Qd7 {[%clk 0:00:23]} 42. e5 {[%clk 0:00:16]}  Qe7 {[%clk 0:00:22]} 43. Qd5+ {[%clk 0:00:14]}  Kg7 {[%clk 0:00:22]} 44. e6 {[%clk 0:00:14]}  Qh4 {[%clk 0:00:18]} 45. Rf7+ {[%clk 0:00:15]}  Kh6 {[%clk 0:00:19]} 46. Qd2+ {[%clk 0:00:15]}  Kh5 {[%clk 0:00:19]} 47. Rxh7+ {[%clk 0:00:16]}  Kg4 {[%clk 0:00:19]} 48. Rxh4+ {[%clk 0:00:17]}  Nxh4 {[%clk 0:00:20]} 49. e7 {[%clk 0:00:17]}  Nf3 {[%clk 0:00:21]} 50. Qf2 {[%clk 0:00:17]}  Ng5 {[%clk 0:00:19]} 51. e8=Q {[%clk 0:00:17]}  Nh3 {[%clk 0:00:20]} 52. Qe4+ {[%clk 0:00:17]}  Kg5 {[%clk 0:00:20]} 53. Qfh4# {[%clk 0:00:18]} 1-0


[Site "https://www.chess.com"]

[Event "Titled Tuesday Blitz January 18 2022"]
[White "Bodnar, Nikolay"]
[Black "Sadhwani, Raunak"]
[WhiteFideId "14106469"]
[BlackFideId "35093487"]
[WhiteElo "2623"]
[BlackElo "3002"]
[Result "0-1"]
[Round "02"]
[TimeControl "180+1"]
[Date "2022.01.18"]
[WhiteClock "0:00:08"]
[BlackClock "0:00:14"]

1. e4 {[%clk 0:03:00]}  e5 {[%clk 0:03:00]} 2. Nf3 {[%clk 0:03:01]}  Nc6 {[%clk 0:03:00]} 3. Bc4 {[%clk 0:03:01]}  d6 {[%clk 0:02:59]} 4. d4 {[%clk 0:03:00]}  exd4 {[%clk 0:02:59]} 5. Nxd4 {[%clk 0:02:58]}  Nf6 {[%clk 0:02:58]} 6. Nc3 {[%clk 0:02:58]}  Be7 {[%clk 0:02:57]} 7. O-O {[%clk 0:02:56]}  O-O {[%clk 0:02:57]} 8. h3 {[%clk 0:02:45]}  Re8 {[%clk 0:02:57]} 9. Re1 {[%clk 0:02:43]}  Nxd4 {[%clk 0:02:57]} 10. Qxd4 {[%clk 0:02:44]}  Nd7 {[%clk 0:02:58]} 11. Bf4 {[%clk 0:02:36]}  Bf6 {[%clk 0:02:55]} 12. Qd2 {[%clk 0:02:35]}  Nc5 {[%clk 0:02:53]} 13. e5 {[%clk 0:02:20]}  dxe5 {[%clk 0:02:37]} 14. Qxd8 {[%clk 0:02:21]}  Rxd8 {[%clk 0:02:27]} 15. Bxe5 {[%clk 0:02:21]}  Bxe5 {[%clk 0:02:28]} 16. Rxe5 {[%clk 0:02:22]}  Ne6 {[%clk 0:02:27]} 17. Rae1 {[%clk 0:02:00]}  Kf8 {[%clk 0:02:26]} 18. Nb5 {[%clk 0:00:49]}  Rb8 {[%clk 0:01:20]} 19. Bxe6 {[%clk 0:00:46]}  Bxe6 {[%clk 0:01:21]} 20. Nxc7 {[%clk 0:00:47]}  Bxa2 {[%clk 0:00:51]} 21. Ra5 {[%clk 0:00:44]}  Rd7 {[%clk 0:00:43]} 22. Nb5 {[%clk 0:00:37]}  Bc4 {[%clk 0:00:42]} 23. Na3 {[%clk 0:00:35]}  Bd5 {[%clk 0:00:30]} 24. Rd1 {[%clk 0:00:31]}  Rbd8 {[%clk 0:00:30]} 25. Rxa7 {[%clk 0:00:29]}  Be4 {[%clk 0:00:30]} 26. Rxd7 {[%clk 0:00:29]}  Rxd7 {[%clk 0:00:31]} 27. Ra4 {[%clk 0:00:27]}  f5 {[%clk 0:00:31]} 28. Rc4 {[%clk 0:00:24]}  Rd1+ {[%clk 0:00:23]} 29. Kh2 {[%clk 0:00:24]}  Rd2 {[%clk 0:00:24]} 30. Kg3 {[%clk 0:00:23]}  g5 {[%clk 0:00:24]} 31. h4 {[%clk 0:00:16]}  h6 {[%clk 0:00:25]} 32. hxg5 {[%clk 0:00:16]}  hxg5 {[%clk 0:00:25]} 33. f3 {[%clk 0:00:15]}  Bd5 {[%clk 0:00:22]} 34. Rc5 {[%clk 0:00:14]}  f4+ {[%clk 0:00:17]} 35. Kh3 {[%clk 0:00:14]}  Be6+ {[%clk 0:00:17]} 36. Kh2 {[%clk 0:00:14]}  g4 {[%clk 0:00:15]} 37. fxg4 {[%clk 0:00:12]}  f3 {[%clk 0:00:16]} 38. Kg3 {[%clk 0:00:08]}  f2 {[%clk 0:00:14]} 0-1


[Site "https://www.chess.com"]

[Event "Titled Tuesday Blitz January 18 2022"]
[White "Bortnyk, Olexandr"]
[Black "Suder, Jakub"]
[WhiteFideId "14120828"]
[BlackFideId "1195310"]
[WhiteElo "2723"]
[BlackElo "2058"]
[Result "1-0"]
[Round "02"]
[TimeControl "180+1"]
[Date "2022.01.18"]
[WhiteClock "0:00:04"]
[BlackClock "0:00:05"]

1. e4 {[%clk 0:03:00]}  c5 {[%clk 0:03:00]} 2. Nf3 {[%clk 0:02:57]}  e6 {[%clk 0:02:59]} 3. c3 {[%clk 0:02:53]}  Nf6 {[%clk 0:02:57]} 4. e5 {[%clk 0:02:50]}  Nd5 {[%clk 0:02:57]} 5. d4 {[%clk 0:02:51]}  cxd4 {[%clk 0:02:58]} 6. cxd4 {[%clk 0:02:52]}  d6 {[%clk 0:02:58]} 7. Bc4 {[%clk 0:02:52]}  Nc6 {[%clk 0:02:57]} 8. O-O {[%clk 0:02:52]}  Be7 {[%clk 0:02:56]} 9. Bd2 {[%clk 0:02:52]}  O-O {[%clk 0:02:54]} 10. Nc3 {[%clk 0:02:52]}  Nxc3 {[%clk 0:02:54]} 11. Bxc3 {[%clk 0:02:53]}  dxe5 {[%clk 0:02:42]} 12. dxe5 {[%clk 0:02:53]}  b6 {[%clk 0:02:38]} 13. Qe2 {[%clk 0:02:44]}  Bb7 {[%clk 0:02:37]} 14. Bd3 {[%clk 0:02:40]}  g6 {[%clk 0:02:14]} 15. Rfd1 {[%clk 0:02:13]}  Qc7 {[%clk 0:02:14]} 16. Rac1 {[%clk 0:02:13]}  Rad8 {[%clk 0:02:14]} 17. h4 {[%clk 0:02:12]}  Qb8 {[%clk 0:01:47]} 18. h5 {[%clk 0:01:37]}  Nb4 {[%clk 0:01:45]} 19. Bxb4 {[%clk 0:01:37]}  Bxb4 {[%clk 0:01:45]} 20. Be4 {[%clk 0:01:32]}  Bc5 {[%clk 0:01:33]} 21. Bxb7 {[%clk 0:01:11]}  Qxb7 {[%clk 0:01:33]} 22. a3 {[%clk 0:01:12]}  a5 {[%clk 0:01:30]} 23. Qc4 {[%clk 0:00:50]}  Qe7 {[%clk 0:01:27]} 24. Qf4 {[%clk 0:00:47]}  Rxd1+ {[%clk 0:01:07]} 25. Rxd1 {[%clk 0:00:47]}  Rd8 {[%clk 0:01:07]} 26. Rc1 {[%clk 0:00:41]}  Qd7 {[%clk 0:00:40]} 27. Ng5 {[%clk 0:00:37]}  Bf8 {[%clk 0:00:37]} 28. Kh2 {[%clk 0:00:27]}  Bg7 {[%clk 0:00:32]} 29. Nf3 {[%clk 0:00:10]}  Rc8 {[%clk 0:00:28]} 30. Rxc8+ {[%clk 0:00:06]}  Qxc8 {[%clk 0:00:29]} 31. h6 {[%clk 0:00:07]}  Bf8 {[%clk 0:00:27]} 32. Ng5 {[%clk 0:00:07]}  Qc7 {[%clk 0:00:21]} 33. Ne4 {[%clk 0:00:08]}  Be7 {[%clk 0:00:20]} 34. g3 {[%clk 0:00:05]}  b5 {[%clk 0:00:17]} 35. b4 {[%clk 0:00:04]}  axb4 {[%clk 0:00:17]} 36. axb4 {[%clk 0:00:05]}  Qd8 {[%clk 0:00:14]} 37. Nd6 {[%clk 0:00:03]}  Qf8 {[%clk 0:00:11]} 38. Nxb5 {[%clk 0:00:02]}  Bxb4 {[%clk 0:00:12]} 39. Nd6 {[%clk 0:00:02]}  Bc5 {[%clk 0:00:10]} 40. Ne4 {[%clk 0:00:02]}  Be7 {[%clk 0:00:11]} 41. Kh3 {[%clk 0:00:03]}  g5 {[%clk 0:00:09]} 42. Nf6+ {[%clk 0:00:03]}  Bxf6 {[%clk 0:00:08]} 43. Qxf6 {[%clk 0:00:04]}  g4+ {[%clk 0:00:05]} 44. Kh2 {[%clk 0:00:04]} 1-0


[Site "https://www.chess.com"]

[Event "Titled Tuesday Blitz January 18 2022"]
[White "Buchenau, Frank"]
[Black "Aditya Mittal"]
[WhiteFideId "4604350"]
[BlackFideId "35042025"]
[WhiteElo "2193"]
[BlackElo "2287"]
[Result "0-1"]
[Round "02"]
[TimeControl "180+1"]
[Date "2022.01.18"]
[WhiteClock "0:00:09"]
[BlackClock "0:00:44"]

1. e4 {[%clk 0:02:04]}  c5 {[%clk 0:02:59]} 2. Nf3 {[%clk 0:02:04]}  d6 {[%clk 0:02:58]} 3. Bb5+ {[%clk 0:02:04]}  Nd7 {[%clk 0:02:57]} 4. O-O {[%clk 0:02:03]}  a6 {[%clk 0:02:56]} 5. Bd3 {[%clk 0:02:02]}  Ngf6 {[%clk 0:02:52]} 6. Re1 {[%clk 0:02:02]}  e6 {[%clk 0:02:51]} 7. c3 {[%clk 0:02:01]}  b5 {[%clk 0:02:51]} 8. Bc2 {[%clk 0:01:59]}  Bb7 {[%clk 0:02:52]} 9. d4 {[%clk 0:01:59]}  Be7 {[%clk 0:02:52]} 10. Bf4 {[%clk 0:01:58]}  h6 {[%clk 0:02:51]} 11. Nbd2 {[%clk 0:01:57]}  Qc7 {[%clk 0:02:49]} 12. h3 {[%clk 0:01:50]}  O-O {[%clk 0:02:44]} 13. Nf1 {[%clk 0:01:44]}  e5 {[%clk 0:02:42]} 14. dxe5 {[%clk 0:01:28]}  dxe5 {[%clk 0:02:43]} 15. Bh2 {[%clk 0:01:25]}  Rfe8 {[%clk 0:02:42]} 16. Ne3 {[%clk 0:01:20]}  Bf8 {[%clk 0:02:42]} 17. c4 {[%clk 0:01:09]}  Rad8 {[%clk 0:02:25]} 18. Nd5 {[%clk 0:01:05]}  Nxd5 {[%clk 0:02:10]} 19. cxd5 {[%clk 0:01:06]}  c4 {[%clk 0:02:09]} 20. a4 {[%clk 0:01:02]}  Bc5 {[%clk 0:02:07]} 21. axb5 {[%clk 0:01:00]}  axb5 {[%clk 0:02:08]} 22. Nh4 {[%clk 0:00:47]}  Nf6 {[%clk 0:01:47]} 23. Nf5 {[%clk 0:00:45]}  Bc8 {[%clk 0:01:43]} 24. Qf3 {[%clk 0:00:44]}  Bxf5 {[%clk 0:01:36]} 25. Qxf5 {[%clk 0:00:45]}  Bd4 {[%clk 0:01:36]} 26. Ra2 {[%clk 0:00:41]}  Qb6 {[%clk 0:01:36]} 27. Rea1 {[%clk 0:00:37]}  g6 {[%clk 0:01:18]} 28. Qf3 {[%clk 0:00:35]}  Rd6 {[%clk 0:01:15]} 29. Bg3 {[%clk 0:00:35]}  Kg7 {[%clk 0:01:11]} 30. Bh4 {[%clk 0:00:30]}  b4 {[%clk 0:01:04]} 31. Ba4 {[%clk 0:00:26]}  Ra8 {[%clk 0:00:54]} 32. Bc6 {[%clk 0:00:25]}  Rxa2 {[%clk 0:00:54]} 33. Rxa2 {[%clk 0:00:26]}  b3 {[%clk 0:00:52]} 34. Ra8 {[%clk 0:00:22]}  c3 {[%clk 0:00:47]} 35. bxc3 {[%clk 0:00:15]}  b2 {[%clk 0:00:47]} 36. cxd4 {[%clk 0:00:14]}  b1=Q+ {[%clk 0:00:47]} 37. Kh2 {[%clk 0:00:14]}  Qxd4 {[%clk 0:00:46]} 38. Bxf6+ {[%clk 0:00:10]}  Rxf6 {[%clk 0:00:46]} 39. Rg8+ {[%clk 0:00:09]}  Kxg8 {[%clk 0:00:46]} 40. Qxf6 {[%clk 0:00:10]}  Qbxe4 {[%clk 0:00:45]} 41. Be8 {[%clk 0:00:09]}  Qf4+ {[%clk 0:00:44]} 0-1


[Site "https://www.chess.com"]

[Event "Titled Tuesday Blitz January 18 2022"]
[White "Ceres, Dragos"]
[Black "Deac, Bogdan-Daniel"]
[WhiteFideId "13905864"]
[BlackFideId "1226380"]
[WhiteElo "2614"]
[BlackElo "2947"]
[Result "0-1"]
[Round "02"]
[TimeControl "180+1"]
[Date "2022.01.18"]
[WhiteClock "0:00:07"]
[BlackClock "0:00:07"]

1. e4 {[%clk 0:03:00]}  c5 {[%clk 0:03:00]} 2. Nf3 {[%clk 0:03:00]}  Nc6 {[%clk 0:03:00]} 3. Bb5 {[%clk 0:02:59]}  g6 {[%clk 0:02:59]} 4. O-O {[%clk 0:02:59]}  Bg7 {[%clk 0:02:59]} 5. Nc3 {[%clk 0:02:59]}  Nh6 {[%clk 0:02:55]} 6. d3 {[%clk 0:02:47]}  O-O {[%clk 0:02:55]} 7. Re1 {[%clk 0:02:43]}  Ng4 {[%clk 0:02:32]} 8. Bxc6 {[%clk 0:02:38]}  dxc6 {[%clk 0:02:21]} 9. e5 {[%clk 0:02:37]}  b6 {[%clk 0:02:15]} 10. h3 {[%clk 0:02:37]}  Nh6 {[%clk 0:02:15]} 11. Bf4 {[%clk 0:02:24]}  Nf5 {[%clk 0:02:14]} 12. a4 {[%clk 0:02:19]}  a5 {[%clk 0:02:05]} 13. Ne4 {[%clk 0:02:11]}  Nd4 {[%clk 0:01:33]} 14. Nfd2 {[%clk 0:01:36]}  Be6 {[%clk 0:01:18]} 15. Bh2 {[%clk 0:01:19]}  Bd5 {[%clk 0:01:12]} 16. Nc4 {[%clk 0:01:16]}  Ra7 {[%clk 0:01:02]} 17. c3 {[%clk 0:00:56]}  Ne6 {[%clk 0:00:59]} 18. Qe2 {[%clk 0:00:51]}  Rd7 {[%clk 0:00:55]} 19. Rad1 {[%clk 0:00:50]}  b5 {[%clk 0:00:53]} 20. Ne3 {[%clk 0:00:43]}  Bb3 {[%clk 0:00:52]} 21. Rd2 {[%clk 0:00:34]}  f5 {[%clk 0:00:25]} 22. exf6 {[%clk 0:00:33]}  exf6 {[%clk 0:00:25]} 23. axb5 {[%clk 0:00:28]}  cxb5 {[%clk 0:00:25]} 24. Nf1 {[%clk 0:00:11]}  f5 {[%clk 0:00:22]} 25. Neg3 {[%clk 0:00:11]}  Nf4 {[%clk 0:00:22]} 26. Qf3 {[%clk 0:00:11]}  Nxd3 {[%clk 0:00:19]} 27. Re3 {[%clk 0:00:07]}  c4 {[%clk 0:00:15]} 28. Ne2 {[%clk 0:00:05]}  f4 {[%clk 0:00:12]} 29. Rexd3 {[%clk 0:00:03]}  cxd3 {[%clk 0:00:10]} 30. Nxf4 {[%clk 0:00:03]}  g5 {[%clk 0:00:10]} 31. Qg4 {[%clk 0:00:02]}  gxf4 {[%clk 0:00:09]} 32. Bxf4 {[%clk 0:00:03]}  h5 {[%clk 0:00:09]} 33. Qg3 {[%clk 0:00:03]}  Rf5 {[%clk 0:00:08]} 34. Be3 {[%clk 0:00:03]}  Qf6 {[%clk 0:00:07]} 35. Nh2 {[%clk 0:00:03]}  h4 {[%clk 0:00:06]} 36. Qg4 {[%clk 0:00:03]}  Be6 {[%clk 0:00:05]} 37. Nf3 {[%clk 0:00:04]}  Rxf3 {[%clk 0:00:05]} 38. Qxf3 {[%clk 0:00:05]}  Qxf3 {[%clk 0:00:06]} 39. gxf3 {[%clk 0:00:06]}  Bxh3 {[%clk 0:00:06]} 40. Kh2 {[%clk 0:00:06]}  Bf5 {[%clk 0:00:07]} 41. f4 {[%clk 0:00:07]}  a4 {[%clk 0:00:07]} 0-1


[Site "https://www.chess.com"]